[Event "Paul Kerese Mälestusfestival 2022 Välkturniir"]
[Site "Paul Kerese Mälestusfestival 2022 Kiirturniir"]
[Date "????.??.??"]
[Round "5.6"]
[White "Petrovskis, Olegs"]
[Black "Dzjuba, Jegor"]
[Result "1-0"]
[TimeControl "3 min + 2 sek iga käigu eest"]
[WhiteElo "1984"]
[BlackElo "1356"]

1. d4 {[%clk 00:03:03]} {[%emt 00:00:01]} e6 {[%clk 00:03:03]} {[%emt
00:00:01]} 2. c4 {[%clk 00:03:04]} d5 {[%clk 00:03:05]} 3. Nc3 {[%clk
00:03:05]} {[%emt 00:00:01]} Nf6 {[%clk 00:03:06]} 4. Bg5 {[%clk 00:03:06]} Be7
{[%clk 00:03:07]} {[%emt 00:00:01]} 5. e3 {[%clk 00:03:07]} O-O {[%clk
00:03:07]} {[%emt 00:00:02]} 6. Nf3 {[%clk 00:03:08]} {[%emt 00:00:01]} b6
{[%clk 00:03:08]} {[%emt 00:00:01]} 7. Qc2 {[%clk 00:03:08]} {[%emt 00:00:01]}
Bb7 {[%clk 00:03:09]} {[%emt 00:00:02]} 8. Rd1 {[%clk 00:03:01]} {[%emt
00:00:08]} dxc4 {[%clk 00:03:05]} {[%emt 00:00:05]} 9. Bxc4 {[%clk 00:03:02]}
{[%emt 00:00:01]} h6 {[%clk 00:03:05]} {[%emt 00:00:03]} 10. Bh4 {[%clk
00:03:03]} {[%emt 00:00:02]} Nd5 {[%clk 00:02:43]} {[%emt 00:00:23]} 11. Bg3
{[%clk 00:03:00]} {[%emt 00:00:05]} Bf6 {[%clk 00:02:32]} {[%emt 00:00:13]} 12.
e4 {[%clk 00:02:55]} {[%emt 00:00:07]} Nb4 {[%clk 00:02:01]} {[%emt 00:00:34]}
13. Qe2 {[%clk 00:02:40]} {[%emt 00:00:17]} g6 {[%clk 00:01:43]} {[%emt
00:00:21]} 14. O-O {[%clk 00:02:28]} {[%emt 00:00:13]} Qe7 {[%clk 00:01:38]}
{[%emt 00:00:07]} 15. a3 {[%clk 00:02:24]} {[%emt 00:00:07]} N4c6 {[%clk
00:01:34]} {[%emt 00:00:06]} 16. Rfe1 {[%clk 00:02:18]} {[%emt 00:00:07]} Na5
{[%clk 00:01:28]} {[%emt 00:00:07]} 17. Ba2 {[%clk 00:02:16]} {[%emt 00:00:04]}
c5 {[%clk 00:01:21]} {[%emt 00:00:09]} 18. dxc5 {[%clk 00:02:09]} {[%emt
00:00:09]} Bxc3 {[%clk 00:00:55]} {[%emt 00:00:28]} 19. bxc3 {[%clk 00:02:02]}
{[%emt 00:00:09]} Qxc5 {[%clk 00:00:55]} {[%emt 00:00:01]} 20. Bd6 {[%clk
00:01:57]} {[%emt 00:00:06]} Qxc3 {[%clk 00:00:51]} {[%emt 00:00:07]} 21. Bxf8
{[%clk 00:01:46]} {[%emt 00:00:13]} Kxf8 {[%clk 00:00:52]} {[%emt 00:00:01]} 22.
Rd3 {[%clk 00:01:40]} {[%emt 00:00:07]} Qc5 {[%clk 00:00:49]} {[%emt 00:00:06]}
23. Qd2 {[%clk 00:01:41]} {[%emt 00:00:01]} Kg7 {[%clk 00:00:44]} {[%emt
00:00:07]} 24. Qb2+ {[%clk 00:01:31]} {[%emt 00:00:12]} Kh7 {[%clk 00:00:27]}
{[%emt 00:00:19]} 25. Rd8 {[%clk 00:01:25]} {[%emt 00:00:07]} g5 {[%clk
00:00:16]} {[%emt 00:00:14]} 26. Qh8+ {[%clk 00:00:56]} {[%emt 00:00:30]} Kg6
{[%clk 00:00:18]} {[%emt 00:00:02]} 27. Ne5+ {[%clk 00:00:57]} Kh5 {[%clk
00:00:16]} {[%emt 00:00:04]} 28. g4+ {[%clk 00:00:57]} {[%emt 00:00:02]} 1-0

[Event "Paul Kerese Mälestusfestival 2022 Välkturniir"]
[Site "Paul Kerese Mälestusfestival 2022 Kiirturniir"]
[Date "????.??.??"]
[Round "5.7"]
[White "Protassov, Vlad"]
[Black "Olde, Karl Erik"]
[Result "1-0"]
[TimeControl "3 min + 2 sek iga käigu eest"]
[WhiteElo "1816"]
[BlackElo "1768"]

1. d4 d5 2. c4 {[%clk 00:03:04]} e6 {[%clk 00:03:05]} 3. Nf3 {[%clk 00:03:05]}
{[%emt 00:00:02]} Nf6 {[%clk 00:03:07]} 4. g3 {[%clk 00:03:06]} Be7 {[%clk
00:03:08]} {[%emt 00:00:01]} 5. Bg2 {[%clk 00:03:07]} O-O {[%clk 00:03:09]}
{[%emt 00:00:02]} 6. O-O {[%clk 00:03:08]} {[%emt 00:00:02]} dxc4 {[%clk
00:03:10]} {[%emt 00:00:01]} 7. Qc2 {[%clk 00:03:09]} a6 {[%clk 00:03:08]}
{[%emt 00:00:04]} 8. a4 {[%clk 00:03:10]} {[%emt 00:00:01]} Bd7 {[%clk
00:03:06]} {[%emt 00:00:04]} 9. Rd1 {[%clk 00:03:11]} {[%emt 00:00:01]} Bc6
{[%clk 00:03:05]} {[%emt 00:00:03]} 10. Nc3 {[%clk 00:03:11]} Nbd7 {[%clk
00:03:00]} {[%emt 00:00:07]} 11. e4 {[%clk 00:03:12]} b5 {[%clk 00:02:52]}
{[%emt 00:00:10]} 12. d5 {[%clk 00:03:12]} {[%emt 00:00:02]} exd5 {[%clk
00:02:48]} {[%emt 00:00:06]} 13. e5 {[%clk 00:03:13]} {[%emt 00:00:01]} Ne4
{[%clk 00:02:44]} {[%emt 00:00:06]} 14. Nxd5 {[%clk 00:02:40]} {[%emt
00:00:35]} Nec5 {[%clk 00:02:30]} {[%emt 00:00:16]} 15. Nxe7+ {[%clk 00:02:25]}
{[%emt 00:00:17]} Qxe7 {[%clk 00:02:30]} {[%emt 00:00:02]} 16. Ng5 {[%clk
00:02:25]} {[%emt 00:00:01]} Nd3 {[%clk 00:01:51]} {[%emt 00:00:41]} 17. Bxc6
{[%clk 00:02:21]} {[%emt 00:00:07]} Rad8 {[%clk 00:01:52]} {[%emt 00:00:02]} 18.
Rxd3 {[%clk 00:01:08]} {[%emt 00:01:15]} cxd3 {[%clk 00:01:38]} {[%emt
00:00:15]} 19. Qxd3 {[%clk 00:01:08]} {[%emt 00:00:02]} g6 {[%clk 00:01:33]}
{[%emt 00:00:08]} 20. e6 {[%clk 00:00:37]} {[%emt 00:00:33]} fxe6 {[%clk
00:00:58]} {[%emt 00:00:37]} 21. Qe2 {[%clk 00:00:16]} {[%emt 00:00:23]} Nc5
{[%clk 00:00:42]} {[%emt 00:00:18]} 22. Be3 {[%clk 00:00:15]} {[%emt 00:00:02]}
Qd6 {[%clk 00:00:29]} {[%emt 00:00:15]} 23. axb5 {[%clk 00:00:14]} {[%emt
00:00:04]} axb5 {[%clk 00:00:29]} {[%emt 00:00:03]} 24. Bxb5 {[%clk 00:00:13]}
{[%emt 00:00:03]} Nb3 {[%clk 00:00:11]} {[%emt 00:00:20]} 25. Re1 {[%clk
00:00:09]} {[%emt 00:00:05]} h6 {[%clk 00:00:11]} {[%emt 00:00:02]} 26. Nxe6
{[%clk 00:00:08]} {[%emt 00:00:03]} Rde8 {[%clk 00:00:07]} {[%emt 00:00:06]} 27.
Nxf8 Rxf8 {[%clk 00:00:09]} 28. Bc4+ {[%clk 00:00:06]} {[%emt 00:00:01]} Kh7
{[%clk 00:00:10]} 29. Bxb3 {[%clk 00:00:07]} {[%emt 00:00:02]} Qb4 {[%clk
00:00:09]} {[%emt 00:00:02]} 30. Bc2 {[%clk 00:00:07]} {[%emt 00:00:02]} c5
{[%emt 00:00:02]} 31. Qd1 {[%clk 00:00:07]} Rf7 {[%clk 00:00:11]} {[%emt
00:00:02]} 32. Bd2 {[%clk 00:00:07]} {[%emt 00:00:02]} Qd4 {[%clk 00:00:11]}
{[%emt 00:00:02]} 33. Be3 {[%clk 00:00:08]} {[%emt 00:00:02]} Qb4 {[%clk
00:00:12]} {[%emt 00:00:01]} 34. Rf1 {[%clk 00:00:08]} {[%emt 00:00:01]} Qxb2
{[%clk 00:00:13]} {[%emt 00:00:01]} 35. Qd3 {[%clk 00:00:08]} {[%emt 00:00:01]}
Qf6 {[%clk 00:00:14]} {[%emt 00:00:02]} 36. Rd1 {[%clk 00:00:09]} {[%emt
00:00:01]} c4 {[%clk 00:00:15]} {[%emt 00:00:01]} 37. Qd6 {[%clk 00:00:07]}
{[%emt 00:00:02]} Qg7 {[%clk 00:00:14]} {[%emt 00:00:04]} 38. Rd4 {[%clk
00:00:06]} {[%emt 00:00:04]} c3 {[%clk 00:00:15]} {[%emt 00:00:01]} 39. Rc4
{[%clk 00:00:06]} {[%emt 00:00:02]} Rf6 {[%clk 00:00:15]} {[%emt 00:00:03]} 40.
Qd4 {[%clk 00:00:05]} {[%emt 00:00:02]} 1-0

[Event "Paul Kerese Mälestusfestival 2022 Välkturniir"]
[Site "Paul Kerese Mälestusfestival 2022 Kiirturniir"]
[Date "????.??.??"]
[Round "5.8"]
[White "Bernotas, Arturs"]
[Black "Randma, Urmas"]
[Result "0-1"]
[TimeControl "3 min + 2 sek iga käigu eest"]
[WhiteTitle "FM"]
[WhiteElo "2382"]
[BlackElo "1461"]

1. e4 {[%clk 00:03:02]} e6 {[%clk 00:03:02]} {[%emt 00:00:03]} 2. d4 {[%clk
00:03:02]} {[%emt 00:00:02]} d5 {[%clk 00:03:03]} 3. Nc3 {[%clk 00:03:03]}
{[%emt 00:00:02]} Bb4 {[%clk 00:03:03]} {[%emt 00:00:02]} 4. exd5 {[%clk
00:02:53]} {[%emt 00:00:12]} Bxc3+ {[%clk 00:03:03]} {[%emt 00:00:02]} 5. bxc3
{[%clk 00:02:53]} {[%emt 00:00:02]} exd5 {[%clk 00:03:01]} {[%emt 00:00:04]} 6.
Bd3 {[%clk 00:02:51]} {[%emt 00:00:04]} Nf6 {[%clk 00:02:58]} {[%emt 00:00:05]}
7. Nf3 {[%clk 00:02:46]} {[%emt 00:00:07]} Bg4 {[%clk 00:02:58]} {[%emt
00:00:01]} 8. h3 {[%clk 00:02:42]} {[%emt 00:00:06]} Bh5 {[%clk 00:02:55]}
{[%emt 00:00:06]} 9. O-O {[%clk 00:02:38]} {[%emt 00:00:06]} O-O {[%clk
00:02:55]} {[%emt 00:00:02]} 10. Bg5 {[%clk 00:02:37]} {[%emt 00:00:03]} h6
{[%clk 00:02:51]} {[%emt 00:00:06]} 11. Bh4 {[%clk 00:02:36]} {[%emt 00:00:02]}
Nbd7 {[%clk 00:02:46]} {[%emt 00:00:08]} 12. g4 {[%clk 00:02:06]} {[%emt
00:00:32]} Bg6 {[%clk 00:02:36]} {[%emt 00:00:12]} 13. Ne5 {[%clk 00:02:02]}
{[%emt 00:00:06]} Bxd3 {[%clk 00:02:30]} {[%emt 00:00:08]} 14. cxd3 {[%clk
00:02:01]} {[%emt 00:00:03]} g5 {[%clk 00:02:24]} {[%emt 00:00:08]} 15. Bg3
{[%clk 00:02:01]} {[%emt 00:00:02]} Re8 {[%clk 00:02:16]} {[%emt 00:00:10]} 16.
Qf3 {[%clk 00:01:57]} {[%emt 00:00:06]} Re7 {[%clk 00:02:00]} {[%emt 00:00:18]}
17. Rfe1 {[%clk 00:01:55]} {[%emt 00:00:04]} Qf8 {[%clk 00:01:49]} {[%emt
00:00:13]} 18. Nxd7 {[%clk 00:01:41]} {[%emt 00:00:17]} Rxe1+ 19. Rxe1 {[%clk
00:01:40]} Nxd7 {[%clk 00:01:39]} {[%emt 00:00:08]} 20. Qxd5 {[%clk 00:01:40]}
{[%emt 00:00:02]} Nb6 {[%clk 00:01:03]} {[%emt 00:00:39]} 21. Qxb7 {[%clk
00:01:37]} {[%emt 00:00:04]} Qa3 {[%emt 00:00:13]} 22. Qc6 {[%clk 00:01:12]}
{[%emt 00:00:24]} Qxa2 {[%clk 00:00:52]} {[%emt 00:00:06]} 23. Qxh6 {[%clk
00:01:08]} {[%emt 00:00:06]} Qd2 {[%clk 00:00:30]} {[%emt 00:00:24]} 24. Re5
{[%clk 00:01:01]} {[%emt 00:00:08]} Nd7 {[%clk 00:00:24]} {[%emt 00:00:09]} 25.
Rxg5+ {[%clk 00:01:01]} {[%emt 00:00:02]} 0-1

[Event "Paul Kerese Mälestusfestival 2022 Välkturniir"]
[Site "Paul Kerese Mälestusfestival 2022 Kiirturniir"]
[Date "????.??.??"]
[Round "6.1"]
[White "Maiorov, Nikita"]
[Black "Agrest, Evgenij"]
[Result "0-1"]
[TimeControl "3 min + 2 sek iga käigu eest"]
[WhiteTitle "GM"]
[BlackTitle "GM"]
[WhiteElo "2417"]
[BlackElo "2574"]

1. d4 {[%clk 00:03:03]} d5 {[%clk 00:03:02]} {[%emt 00:00:02]} 2. c4 {[%clk
00:03:04]} {[%emt 00:00:01]} c6 {[%clk 00:03:04]} 3. Nc3 {[%clk 00:03:04]}
{[%emt 00:00:03]} Nf6 {[%clk 00:03:04]} {[%emt 00:00:01]} 4. e3 {[%clk
00:03:05]} e6 {[%clk 00:03:04]} {[%emt 00:00:03]} 5. Nf3 {[%clk 00:03:06]}
{[%emt 00:00:01]} a6 {[%clk 00:03:05]} {[%emt 00:00:01]} 6. Bd3 {[%clk
00:03:01]} {[%emt 00:00:06]} dxc4 {[%clk 00:03:03]} {[%emt 00:00:04]} 7. Bxc4
{[%clk 00:03:02]} b5 {[%clk 00:03:02]} {[%emt 00:00:03]} 8. Be2 {[%clk
00:02:56]} {[%emt 00:00:08]} Nbd7 {[%clk 00:03:01]} {[%emt 00:00:03]} 9. O-O
{[%clk 00:02:48]} {[%emt 00:00:09]} Bb7 {[%clk 00:02:51]} {[%emt 00:00:13]} 10.
b3 {[%clk 00:01:59]} {[%emt 00:00:50]} c5 {[%clk 00:02:49]} {[%emt 00:00:04]}
11. Bb2 {[%clk 00:01:56]} {[%emt 00:00:05]} Bd6 {[%clk 00:02:42]} {[%emt
00:00:08]} 12. a4 {[%clk 00:01:56]} {[%emt 00:00:03]} b4 {[%clk 00:02:37]}
{[%emt 00:00:06]} 13. Nb1 {[%clk 00:01:57]} O-O {[%clk 00:02:28]} {[%emt
00:00:11]} 14. Nbd2 {[%clk 00:01:58]} {[%emt 00:00:01]} Rc8 {[%clk 00:02:28]}
{[%emt 00:00:02]} 15. Nc4 {[%clk 00:01:56]} {[%emt 00:00:04]} Bb8 {[%clk
00:02:29]} 16. Nfe5 {[%clk 00:01:55]} {[%emt 00:00:03]} Nxe5 {[%clk 00:02:24]}
{[%emt 00:00:07]} 17. dxe5 {[%clk 00:01:55]} {[%emt 00:00:02]} Nd5 {[%clk
00:02:07]} {[%emt 00:00:19]} 18. Qd2 {[%clk 00:01:52]} {[%emt 00:00:05]} Qh4
{[%clk 00:01:28]} {[%emt 00:00:41]} 19. g3 {[%clk 00:01:38]} {[%emt 00:00:17]}
Qh6 {[%clk 00:01:24]} {[%emt 00:00:06]} 20. Qc2 {[%clk 00:01:18]} {[%emt
00:00:22]} Rcd8 {[%clk 00:01:05]} {[%emt 00:00:21]} 21. Rad1 {[%clk 00:01:15]}
{[%emt 00:00:05]} Ba8 {[%clk 00:00:57]} {[%emt 00:00:10]} 22. e4 {[%clk
00:01:03]} {[%emt 00:00:13]} Ne7 {[%clk 00:00:57]} {[%emt 00:00:03]} 23. Nd6
{[%clk 00:00:58]} {[%emt 00:00:07]} f5 {[%clk 00:00:48]} {[%emt 00:00:11]} 24.
Qxc5 {[%clk 00:00:34]} {[%emt 00:00:26]} fxe4 {[%clk 00:00:45]} {[%emt
00:00:04]} 25. Bc1 {[%clk 00:00:33]} {[%emt 00:00:03]} Qh3 {[%clk 00:00:41]}
{[%emt 00:00:07]} 26. Be3 {[%clk 00:00:30]} {[%emt 00:00:04]} Bd5 {[%clk
00:00:39]} {[%emt 00:00:05]} 27. Qxb4 {[%clk 00:00:14]} {[%emt 00:00:19]} Nc6
{[%clk 00:00:38]} {[%emt 00:00:03]} 28. Qc3 {[%clk 00:00:12]} {[%emt 00:00:03]}
Nxe5 {[%clk 00:00:38]} {[%emt 00:00:02]} 29. Qxe5 {[%clk 00:00:13]} {[%emt
00:00:01]} Bxd6 {[%clk 00:00:39]} {[%emt 00:00:01]} 30. Qc3 {[%clk 00:00:13]}
{[%emt 00:00:02]} Rc8 {[%clk 00:00:31]} {[%emt 00:00:09]} 31. Bc4 {[%clk
00:00:13]} {[%emt 00:00:02]} h5 {[%clk 00:00:27]} {[%emt 00:00:06]} 32. Rxd5
{[%clk 00:00:10]} {[%emt 00:00:06]} exd5 {[%clk 00:00:27]} {[%emt 00:00:02]} 33.
Bxd5+ {[%clk 00:00:11]} {[%emt 00:00:01]} Kh8 {[%clk 00:00:27]} 34. Qd2 {[%clk
00:00:08]} {[%emt 00:00:05]} h4 {[%clk 00:00:28]} {[%emt 00:00:02]} 35. Rd1
{[%clk 00:00:03]} {[%emt 00:00:06]} hxg3 {[%clk 00:00:28]} {[%emt 00:00:02]} 36.
hxg3 {[%clk 00:00:04]} {[%emt 00:00:01]} Bxg3 {[%clk 00:00:28]} {[%emt
00:00:02]} 37. fxg3 {[%clk 00:00:04]} {[%emt 00:00:02]} Qxg3+ {[%clk 00:00:29]}
38. Kh1 {[%clk 00:00:05]} Rf5 {[%clk 00:00:20]} {[%emt 00:00:10]} 39. Qh2+
{[%clk 00:00:06]} {[%emt 00:00:01]} Qxh2+ {[%clk 00:00:22]} {[%emt 00:00:01]}
40. Kxh2 {[%clk 00:00:07]} Rd8 {[%clk 00:00:23]} {[%emt 00:00:01]} 41. Rd4
{[%clk 00:00:07]} {[%emt 00:00:02]} Rfxd5 {[%clk 00:00:21]} {[%emt 00:00:03]}
42. Rxe4 {[%clk 00:00:08]} {[%emt 00:00:01]} Rd3 {[%clk 00:00:23]} 43. b4
{[%clk 00:00:09]} {[%emt 00:00:01]} Ra3 {[%clk 00:00:22]} {[%emt 00:00:02]} 44.
b5 {[%emt 00:00:03]} axb5 {[%clk 00:00:21]} {[%emt 00:00:02]} 45. axb5 {[%clk
00:00:10]} Rdd3 {[%clk 00:00:23]} 46. Bf2 {[%clk 00:00:09]} {[%emt 00:00:03]}
Ra2 {[%clk 00:00:24]} 47. Kg2 {[%clk 00:00:09]} {[%emt 00:00:02]} Rdd2 {[%clk
00:00:25]} {[%emt 00:00:01]} 48. Rf4 {[%clk 00:00:10]} Rdb2 {[%clk 00:00:27]}
49. Rf5 {[%clk 00:00:10]} {[%emt 00:00:02]} Kh7 {[%clk 00:00:28]} 50. Kg3
{[%clk 00:00:10]} {[%emt 00:00:02]} Kg6 {[%clk 00:00:29]} 51. Rf3 {[%clk
00:00:09]} {[%emt 00:00:03]} Rxb5 {[%clk 00:00:30]} {[%emt 00:00:01]} 52. Be3
{[%clk 00:00:10]} {[%emt 00:00:01]} Rb3 {[%clk 00:00:30]} {[%emt 00:00:02]} 0-1

[Event "Paul Kerese Mälestusfestival 2022 Välkturniir"]
[Site "Paul Kerese Mälestusfestival 2022 Kiirturniir"]
[Date "????.??.??"]
[Round "6.2"]
[White "Chukavin, Kirill"]
[Black "Teelem, Lauri"]
[Result "1-0"]
[TimeControl "3 min + 2 sek iga käigu eest"]
[WhiteTitle "FM"]
[WhiteElo "2280"]
[BlackElo "2012"]

1. e4 {[%clk 00:03:02]} d5 {[%clk 00:03:04]} {[%emt 00:00:01]} 2. exd5 {[%clk
00:03:03]} {[%emt 00:00:01]} Nf6 {[%clk 00:03:04]} {[%emt 00:00:02]} 3. Nf3
{[%clk 00:03:02]} {[%emt 00:00:02]} Nxd5 {[%clk 00:03:04]} {[%emt 00:00:02]} 4.
d4 {[%clk 00:03:03]} Bg4 {[%clk 00:03:04]} {[%emt 00:00:02]} 5. Be2 {[%clk
00:03:02]} {[%emt 00:00:03]} e6 {[%clk 00:03:05]} {[%emt 00:00:02]} 6. O-O
{[%clk 00:02:57]} {[%emt 00:00:06]} Bd6 {[%clk 00:03:06]} {[%emt 00:00:01]} 7.
Ne5 {[%clk 00:02:33]} {[%emt 00:00:27]} Bxe2 {[%clk 00:03:05]} {[%emt
00:00:03]} 8. Qxe2 {[%clk 00:02:34]} Bxe5 {[%clk 00:02:53]} {[%emt 00:00:14]} 9.
dxe5 {[%clk 00:02:33]} {[%emt 00:00:02]} c6 {[%clk 00:02:38]} {[%emt 00:00:17]}
10. c4 {[%clk 00:02:26]} {[%emt 00:00:09]} Ne7 {[%clk 00:02:33]} {[%emt
00:00:07]} 11. Nc3 {[%clk 00:02:06]} {[%emt 00:00:23]} Qc7 {[%clk 00:02:21]}
{[%emt 00:00:13]} 12. Bg5 {[%clk 00:01:40]} {[%emt 00:00:29]} h6 {[%clk
00:02:08]} {[%emt 00:00:15]} 13. Bxe7 {[%clk 00:01:33]} {[%emt 00:00:09]} Qxe7
{[%clk 00:02:02]} {[%emt 00:00:07]} 14. Ne4 {[%clk 00:01:35]} {[%emt 00:00:01]}
O-O {[%clk 00:01:48]} {[%emt 00:00:16]} 15. Rad1 {[%clk 00:01:31]} {[%emt
00:00:06]} Nd7 {[%clk 00:01:45]} {[%emt 00:00:05]} 16. f4 {[%clk 00:01:27]}
{[%emt 00:00:06]} Rfd8 {[%clk 00:01:33]} {[%emt 00:00:14]} 17. Rd6 {[%clk
00:01:26]} {[%emt 00:00:03]} Nf8 {[%clk 00:01:20]} {[%emt 00:00:14]} 18. Rfd1
{[%clk 00:01:27]} Qc7 {[%clk 00:00:56]} {[%emt 00:00:28]} 19. c5 {[%clk
00:01:03]} {[%emt 00:00:26]} Re8 {[%clk 00:00:55]} {[%emt 00:00:03]} 20. Qg4
{[%clk 00:00:53]} {[%emt 00:00:12]} Kh7 {[%clk 00:00:44]} {[%emt 00:00:13]} 21.
h4 {[%clk 00:00:44]} {[%emt 00:00:11]} Qa5 {[%clk 00:00:41]} {[%emt 00:00:05]}
22. a3 {[%clk 00:00:40]} {[%emt 00:00:06]} Qa4 {[%clk 00:00:39]} {[%emt
00:00:05]} 23. Qf3 {[%clk 00:00:35]} {[%emt 00:00:07]} Ng6 {[%clk 00:00:34]}
{[%emt 00:00:07]} 24. Rd7 {[%clk 00:00:25]} {[%emt 00:00:12]} Nxh4 {[%clk
00:00:32]} {[%emt 00:00:03]} 25. Qd3 {[%clk 00:00:26]} Nf5 {[%clk 00:00:32]}
{[%emt 00:00:02]} 26. g4 {[%emt 00:00:29]} 1-0

[Event "Paul Kerese Mälestusfestival 2022 Välkturniir"]
[Site "Paul Kerese Mälestusfestival 2022 Kiirturniir"]
[Date "????.??.??"]
[Round "6.3"]
[White "Agafonov, Yuri"]
[Black "Paikens, Reinis"]
[Result "1-0"]
[TimeControl "3 min + 2 sek iga käigu eest"]
[WhiteElo "1913"]
[BlackElo "1678"]

1. d4 {[%clk 00:03:02]} {[%emt 00:00:01]} d5 {[%clk 00:03:04]} {[%emt
00:00:01]} 2. Bg5 {[%clk 00:03:03]} {[%emt 00:00:01]} Bf5 {[%clk 00:03:00]}
{[%emt 00:00:06]} 3. e3 {[%clk 00:03:04]} c6 {[%clk 00:02:55]} {[%emt
00:00:07]} 4. Bd3 {[%clk 00:03:02]} {[%emt 00:00:04]} Bg6 {[%clk 00:02:56]}
{[%emt 00:00:01]} 5. Nf3 {[%clk 00:03:00]} {[%emt 00:00:04]} Nd7 {[%clk
00:02:57]} {[%emt 00:00:01]} 6. O-O {[%clk 00:02:59]} {[%emt 00:00:03]} Ngf6
{[%clk 00:02:58]} {[%emt 00:00:01]} 7. c4 {[%clk 00:03:00]} {[%emt 00:00:01]}
e6 {[%clk 00:02:58]} {[%emt 00:00:02]} 8. Nc3 {[%clk 00:02:58]} {[%emt
00:00:04]} Be7 {[%clk 00:02:59]} {[%emt 00:00:02]} 9. Rb1 {[%clk 00:02:57]}
{[%emt 00:00:03]} O-O {[%clk 00:02:59]} {[%emt 00:00:02]} 10. Bxg6 {[%clk
00:02:54]} {[%emt 00:00:04]} hxg6 {[%clk 00:03:00]} 11. Qe2 {[%clk 00:02:53]}
{[%emt 00:00:04]} Ne8 {[%clk 00:02:34]} {[%emt 00:00:28]} 12. Bxe7 {[%clk
00:02:48]} {[%emt 00:00:06]} Qxe7 {[%clk 00:02:34]} {[%emt 00:00:02]} 13. b4
{[%clk 00:02:49]} {[%emt 00:00:01]} Ndf6 {[%clk 00:02:31]} {[%emt 00:00:05]} 14.
b5 {[%clk 00:02:46]} {[%emt 00:00:06]} Nd6 {[%clk 00:02:24]} {[%emt 00:00:09]}
15. bxc6 {[%clk 00:02:30]} {[%emt 00:00:18]} bxc6 {[%clk 00:02:25]} {[%emt
00:00:01]} 16. c5 {[%clk 00:02:25]} {[%emt 00:00:07]} Nc4 {[%clk 00:02:19]}
{[%emt 00:00:08]} 17. e4 {[%clk 00:01:57]} {[%emt 00:00:29]} Qc7 {[%clk
00:01:57]} {[%emt 00:00:24]} 18. e5 {[%clk 00:01:53]} {[%emt 00:00:07]} Nd7
{[%clk 00:01:58]} 19. Ng5 {[%clk 00:01:44]} {[%emt 00:00:10]} Rfb8 {[%clk
00:01:23]} {[%emt 00:00:38]} 20. Rb3 {[%clk 00:01:31]} {[%emt 00:00:15]} Na5
{[%clk 00:01:08]} {[%emt 00:00:16]} 21. Rxb8+ {[%clk 00:01:13]} {[%emt
00:00:20]} Rxb8 {[%clk 00:01:09]} {[%emt 00:00:01]} 22. h4 {[%clk 00:01:06]}
{[%emt 00:00:08]} Nc4 {[%clk 00:01:08]} {[%emt 00:00:03]} 23. h5 {[%clk
00:01:01]} {[%emt 00:00:07]} Rb2 {[%clk 00:00:56]} {[%emt 00:00:14]} 24. Qd3
{[%clk 00:00:50]} {[%emt 00:00:13]} Nf8 {[%clk 00:00:53]} {[%emt 00:00:06]} 25.
Nce4 {[%clk 00:00:34]} {[%emt 00:00:18]} Qe7 {[%clk 00:00:41]} {[%emt
00:00:14]} 26. hxg6 {[%clk 00:00:25]} {[%emt 00:00:11]} Nxg6 {[%clk 00:00:40]}
{[%emt 00:00:03]} 27. f4 {[%clk 00:00:17]} {[%emt 00:00:09]} Rxa2 {[%clk
00:00:33]} {[%emt 00:00:11]} 28. Qb3 {[%clk 00:00:17]} {[%emt 00:00:02]} Rb2
{[%clk 00:00:29]} {[%emt 00:00:06]} 29. Qc3 {[%clk 00:00:16]} {[%emt 00:00:03]}
a5 {[%clk 00:00:20]} {[%emt 00:00:11]} 30. Nd6 {[%clk 00:00:17]} {[%emt
00:00:02]} Rb4 {[%clk 00:00:18]} {[%emt 00:00:03]} 31. Ndxf7 {[%clk 00:00:11]}
{[%emt 00:00:08]} Nxf4 {[%clk 00:00:18]} {[%emt 00:00:02]} 32. Rxf4 {[%clk
00:00:11]} {[%emt 00:00:02]} Rb1+ {[%clk 00:00:19]} 33. Kh2 {[%clk 00:00:09]}
{[%emt 00:00:03]} a4 {[%clk 00:00:20]} {[%emt 00:00:02]} 34. Rh4 {[%clk
00:00:08]} {[%emt 00:00:03]} g6 {[%clk 00:00:20]} {[%emt 00:00:03]} 35. Qd3
{[%clk 00:00:07]} {[%emt 00:00:02]} Nxe5 {[%clk 00:00:07]} {[%emt 00:00:15]} 36.
dxe5 {[%clk 00:00:08]} {[%emt 00:00:01]} Qxg5 {[%clk 00:00:04]} {[%emt
00:00:05]} 37. Nxg5 {[%emt 00:00:06]} 1-0